bitfinex-derivatives/quotes_BNBF0:USTF0_20250401
["timestamp","ask_amount","ask_price","bid_price","bid_amount"]
[1743526101131,4.2459331,612.05,607.65,1.79013683]
[1743526101332,8.30919297,612.04,607.65,1.79013683]
[1743526101531,4.2459331,612.03,607.65,1.79013683]
[1743526101731,4.2459331,612.02,607.65,1.79013683]
[1743526101930,9.61541995,612.01,607.65,1.79013683]
[1743526102130,4.89905753,612.0,607.65,1.79013683]
[1743526102333,6.50481909,611.99,607.65,1.79013683]
[1743526102534,1.60576156,611.89,607.65,1.79013683]
[1743526102736,3.21577169,611.87,607.65,1.79013683]
[1743526102938,4.89905753,611.86,607.65,1.79013683]
[1743526103130,4.89905753,611.85,607.65,1.79013683]
[1743526103334,4.89905753,611.84,607.65,1.79013683]
[1743526103534,4.89905753,611.83,607.65,1.79013683]
[1743526103730,4.89905753,611.82,607.65,1.79013683]
[1743526103930,9.61541995,611.81,607.65,1.79013683]
[1743526104136,4.89905753,611.8,607.65,1.79013683]
[1743526104337,4.89905753,611.79,607.65,1.79013683]
[1743526104637,4.89905753,611.78,607.65,1.79013683]
[1743526104937,4.89905753,611.77,607.65,1.79013683]
[1743526105238,4.89905753,611.76,607.65,1.79013683]
[1743526105432,9.61541995,611.75,607.65,1.79013683]
[1743526105737,4.89905753,611.74,607.65,1.79013683]
[1743526106031,4.89905753,611.73,607.65,1.79013683]
[1743526106236,4.89905753,611.72,607.65,1.79013683]
[1743526106537,9.61541995,611.71,607.65,1.79013683]
[1743526106732,4.89905753,611.7,607.65,1.79013683]
[1743526106932,4.89905753,611.69,607.65,1.79013683]
[1743526107138,4.89905753,611.68,607.65,1.79013683]
[1743526107438,9.61541995,611.67,607.65,1.79013683]
[1743526107637,4.89905753,611.66,607.65,1.79013683]
[1743526107838,4.2459331,611.65,607.65,1.79013683]
[1743526108032,4.2459331,611.64,607.65,1.79013683]
[1743526108238,8.96229552,611.63,607.65,1.79013683]
[1743526108435,4.2459331,611.62,607.65,1.79013683]
[1743526108635,4.2459331,611.61,607.65,1.79013683]
[1743526108833,4.2459331,611.6,607.65,1.79013683]
[1743526109138,4.2459331,611.59,607.65,1.79013683]
[1743526109337,4.2459331,611.58,607.65,1.79013683]
[1743526109538,4.2459331,611.57,607.65,1.79013683]
[1743526109738,4.2459331,611.56,607.65,1.79013683]
[1743526109935,4.2459331,611.55,607.65,1.79013683]
[1743526110140,4.2459331,611.54,607.65,1.79013683]
[1743526110336,1.63305119,611.53,607.65,1.79013683]
[1743526110541,1.63305119,611.52,607.65,1.79013683]
[1743526110841,4.06325987,611.54,607.65,1.79013683]
[1743526111036,0.3267173,612.15,607.65,1.79013683]
[1743526111739,2.14105924,612.14,607.65,1.79013683]
[1743526111946,1.59977479,611.83,607.65,1.79013683]
[1743526112240,3.19946185,611.8,607.65,1.79013683]
[1743526112441,1.59977479,611.77,607.65,1.79013683]
[1743526112642,1.59968706,611.73,607.65,1.79013683]
[1743526112837,1.59977479,611.71,607.65,1.79013683]
[1743526113043,6.50065146,611.7,607.65,1.79013683]
[1743526113242,1.59968706,611.67,607.65,1.79013683]
[1743526113446,4.90087667,611.66,607.65,1.79013683]
[1743526113638,4.90087667,611.65,607.65,1.79013683]
[1743526113944,4.90087667,611.64,607.65,1.79013683]
[1743526114145,4.90087667,611.63,607.65,1.79013683]
[1743526114439,4.68901461,611.65,607.65,1.79013683]
[1743526114645,4.68901461,611.62,607.65,1.79013683]
[1743526114837,4.90279617,611.61,607.65,1.79013683]
[1743526115036,4.90279617,611.6,607.65,1.79013683]
[1743526115342,4.90279617,611.59,607.65,1.79013683]
[1743526115544,4.90279617,611.58,607.65,1.79013683]
[1743526115839,4.90279617,611.57,607.65,1.79013683]
[1743526116039,4.90279617,611.56,607.65,1.79013683]
[1743526116244,4.90279617,611.55,607.65,1.79013683]
[1743526116439,4.90279617,611.54,607.65,1.79013683]
[1743526116641,4.90279617,611.53,607.65,1.79013683]
[1743526116841,4.90279617,611.52,607.65,1.79013683]
[1743526117147,4.90279617,611.51,607.65,1.79013683]
[1743526117341,4.90279617,611.5,607.65,1.79013683]
[1743526117544,4.90279617,611.49,607.65,1.79013683]
[1743526117744,4.90279617,611.48,607.65,1.79013683]
[1743526118045,4.90295647,611.47,607.65,1.79013683]
[1743526118247,4.90295647,611.46,607.65,1.79013683]
[1743526118447,4.90295647,611.45,607.65,1.79013683]
[1743526118649,4.90295647,611.44,607.65,1.79013683]
[1743526118845,4.90295647,611.43,607.65,1.79013683]
[1743526119043,4.90295647,611.42,607.65,1.79013683]
[1743526119246,4.90295647,611.41,607.65,1.79013683]
[1743526119550,4.90295647,611.4,607.65,1.79013683]
[1743526119742,4.68901461,611.41,607.65,1.79013683]
[1743526119743,4.90295647,611.39,607.65,1.79013683]
[1743526119943,4.68901461,611.41,607.65,1.79013683]
[1743526119944,4.90295647,611.38,607.65,1.79013683]
[1743526120149,4.24922894,611.37,607.65,1.79013683]
[1743526120447,4.24922894,611.36,607.65,1.79013683]
[1743526120649,4.24922894,611.35,607.65,1.79013683]
[1743526120847,4.24922894,611.34,607.65,1.79013683]
[1743526121045,4.24922894,611.33,607.65,1.79013683]
[1743526121245,4.24922894,611.32,607.65,1.79013683]
[1743526121449,4.24922894,611.31,607.65,1.79013683]
[1743526121645,4.24922894,611.3,607.65,1.79013683]
[1743526121948,0.49008779,612.11,607.65,1.79013683]
[1743526122148,0.32674933,612.09,607.65,1.79013683]
[1743526122645,1.59984764,611.54,607.65,1.79013683]
[1743526122843,4.90345837,611.53,607.65,1.79013683]
[1743526123043,4.90345837,611.52,607.65,1.79013683]
[1743526123247,4.90345837,611.51,607.65,1.79013683]
[1743526123548,4.90345837,611.5,607.65,1.79013683]
[1743526123746,4.90345837,611.49,607.65,1.79013683]
[1743526123947,4.90345837,611.48,607.65,1.79013683]
[1743526124146,4.90345837,611.47,607.65,1.79013683]
[1743526124342,4.90345837,611.46,607.65,1.79013683]
[1743526124549,4.90345837,611.45,607.65,1.79013683]
[1743526124747,4.90345837,611.44,607.65,1.79013683]
[1743526124943,4.90345837,611.43,607.65,1.79013683]
[1743526125143,8.93945325,611.42,607.65,1.79013683]
[1743526125347,4.90345837,611.41,607.65,1.79013683]
[1743526125547,4.24966392,611.4,607.65,1.79013683]
[1743526125747,4.24966392,611.39,607.65,1.79013683]
[1743526125943,4.24966392,611.38,607.65,1.79013683]
[1743526126143,4.90344048,611.37,607.65,1.79013683]
[1743526126447,3.20002686,611.6,607.65,1.79013683]
[1743526126448,4.24966392,611.36,607.65,1.79013683]
[1743526126644,4.24966392,611.35,607.65,1.79013683]
[1743526126843,4.24966392,611.34,607.65,1.79013683]
[1743526127149,4.24966392,611.33,607.65,1.79013683]
[1743526127352,4.24966392,611.32,607.65,1.79013683]
[1743526127543,4.24966392,611.31,607.65,1.79013683]
[1743526127745,4.24966392,611.3,607.65,1.79013683]
[1743526127949,4.24966392,611.29,607.65,1.79013683]
[1743526128244,4.24966392,611.28,607.65,1.79013683]
[1743526128444,4.24966392,611.27,607.65,1.79013683]
[1743526128647,4.24966392,611.26,607.65,1.79013683]
[1743526128848,4.03599488,611.27,607.65,1.79013683]
[1743526129043,4.24960042,611.26,607.65,1.79013683]
[1743526129242,1.6344617,611.25,607.65,1.79013683]
[1743526129448,1.6344617,611.24,607.65,1.79013683]
[1743526129749,4.24968623,611.23,607.65,1.79013683]
[1743526130049,1.6344617,611.22,607.65,1.79013683]
[1743526130249,1.6344617,611.21,607.65,1.79013683]
[1743526130449,1.6344617,611.2,607.65,1.79013683]
[1743526130644,3.18676742,611.19,607.65,1.79013683]
[1743526130844,1.6344617,611.18,607.65,1.79013683]
[1743526131047,1.6344617,611.17,607.65,1.79013683]
[1743526131350,1.6344617,611.16,607.65,1.79013683]
[1743526131651,1.6344617,611.15,607.65,1.79013683]
[1743526131849,1.6344617,611.14,607.65,1.79013683]
[1743526132046,1.55230572,611.15,607.65,1.79013683]
[1743526132247,1.63451478,611.14,607.65,1.79013683]
[1743526132447,1.55230572,611.14,607.65,1.79013683]
[1743526132648,1.55230572,611.13,607.65,1.79013683]
[1743526133143,1.55230572,611.12,607.65,1.79013683]
[1743526133548,1.55230572,611.11,607.65,1.79013683]
[1743526133946,1.60017922,611.51,607.65,1.79013683]
[1743526134150,4.90356826,611.5,607.65,1.79013683]
[1743526134345,9.59707537,611.49,607.65,1.79013683]
[1743526134546,4.90356826,611.48,607.65,1.79013683]
[1743526134747,4.90356826,611.47,607.65,1.79013683]
[1743526134948,4.90356826,611.46,607.65,1.79013683]
[1743526135149,4.90356826,611.45,607.65,1.79013683]
[1743526135349,4.90356826,611.44,607.65,1.79013683]
[1743526135552,4.90356826,611.43,607.65,1.79013683]
[1743526135746,4.69350711,611.45,607.65,1.79013683]
[1743526135747,4.90356826,611.42,607.65,1.79013683]
[1743526135949,4.90360505,611.41,607.65,1.79013683]
[1743526136147,4.90360505,611.4,607.65,1.79013683]
[1743526136353,4.90360505,611.39,607.65,1.79013683]
[1743526136552,4.90360568,611.38,607.65,1.79013683]
[1743526136752,4.24979105,611.37,607.65,1.79013683]
[1743526137053,4.24979105,611.36,607.65,1.79013683]
[1743526137250,4.24979105,611.35,607.65,1.79013683]
[1743526137447,4.24979105,611.34,607.65,1.79013683]
[1743526137653,8.28948903,611.33,607.65,1.79013683]
[1743526137952,4.24979105,611.32,607.65,1.79013683]
[1743526138148,4.24979105,611.31,607.65,1.79013683]
[1743526138352,4.24979105,611.3,607.65,1.79013683]
[1743526138547,4.24979105,611.29,607.65,1.79013683]
[1743526138751,4.24979105,611.28,607.65,1.79013683]
[1743526138947,4.24979105,611.27,607.65,1.79013683]
[1743526139145,4.24979105,611.26,607.65,1.79013683]
[1743526139352,4.24979105,611.25,607.65,1.79013683]
[1743526139653,4.03969798,611.27,607.65,1.79013683]
[1743526139654,4.24979105,611.24,607.65,1.79013683]
[1743526139853,4.24979105,611.23,607.65,1.79013683]
[1743526140046,4.24979105,611.22,607.65,1.79013683]
[1743526140247,4.24979105,611.21,607.65,1.79013683]
[1743526140450,4.24979105,611.2,607.65,1.79013683]
[1743526140649,8.28688766,611.19,607.65,1.79013683]
[1743526140852,1.63453502,611.18,607.65,1.79013683]
[1743526141052,5.67136382,611.17,607.65,1.79013683]
[1743526141254,1.63453502,611.16,607.65,1.79013683]
[1743526141450,1.63453502,611.15,607.65,1.79013683]
[1743526141654,1.63453502,611.14,607.65,1.79013683]
[1743526141855,4.0368288,611.16,607.65,1.79013683]
[1743526141856,1.63453502,611.13,607.65,1.79013683]
[1743526142156,1.63453502,611.12,607.65,1.79013683]
[1743526142454,1.63453502,611.11,607.65,1.79013683]
[1743526142655,1.63453502,611.1,607.65,1.79013683]
[1743526142848,1.63453502,611.09,607.65,1.79013683]
[1743526143048,1.63453502,611.08,607.65,1.79013683]
[1743526143252,1.63453502,611.07,607.65,1.79013683]
[1743526143449,0.96015984,612.02,607.65,1.79013683]
[1743526143450,3.18716148,611.06,607.65,1.79013683]
[1743526143755,1.63453502,611.05,607.65,1.79013683]
[1743526143958,1.63453502,611.04,607.65,1.79013683]
[1743526144151,1.63453502,611.03,607.65,1.79013683]
[1743526144356,1.63453502,611.02,607.65,1.79013683]
[1743526144657,5.66948384,611.01,607.65,1.79013683]
[1743526144857,1.63453502,611.0,607.65,1.79013683]
[1743526145056,1.63453502,610.99,607.65,1.79013683]
[1743526145253,3.18716148,610.98,607.65,1.79013683]
[1743526145451,1.63453502,610.97,607.65,1.79013683]
[1743526145657,1.63453502,610.96,607.65,1.79013683]
[1743526145852,1.63453502,610.95,607.65,1.79013683]
[1743526146052,1.63453502,610.94,607.65,1.79013683]
[1743526146254,1.63453502,610.93,607.65,1.79013683]
[1743526146457,3.18716148,610.92,607.65,1.79013683]
[1743526146652,1.63453502,610.91,607.65,1.79013683]
[1743526146857,3.18716148,610.9,607.65,1.79013683]
[1743526147058,1.63453502,610.89,607.65,1.79013683]
[1743526147359,1.63453502,610.88,607.65,1.79013683]
[1743526147554,1.63513792,610.87,607.65,1.79013683]
[1743526147752,1.55262646,610.88,607.65,1.79013683]
[1743526147753,1.63513792,610.86,607.65,1.79013683]
[1743526147958,1.55262646,610.88,607.65,1.79013683]
[1743526148152,1.60057862,611.36,607.65,1.79013683]
[1743526148453,4.90431625,611.35,607.65,1.79013683]
[1743526148658,4.90431625,611.34,607.65,1.79013683]
[1743526148854,4.90431625,611.33,607.65,1.79013683]
[1743526149049,4.90431625,611.32,607.65,1.79013683]
[1743526149259,4.90431625,611.31,607.65,1.79013683]
[1743526149452,4.90431625,611.3,607.65,1.79013683]
[1743526149650,4.90431625,611.29,607.65,1.79013683]
[1743526149852,4.90431625,611.28,607.65,1.79013683]
[1743526150155,4.90431625,611.27,607.65,1.79013683]
[1743526150357,4.90431625,611.26,607.65,1.79013683]
[1743526150558,4.90431625,611.25,607.65,1.79013683]
[1743526150853,4.90431625,611.24,607.65,1.79013683]
[1743526151053,4.90431625,611.23,607.65,1.79013683]
[1743526151258,1.60057862,611.36,607.65,1.79013683]
[1743526151259,4.90431625,611.22,607.65,1.79013683]
[1743526151457,4.90431625,611.21,607.65,1.79013683]
[1743526151657,4.25040742,611.2,607.65,1.79013683]
[1743526151858,4.25040742,611.19,607.65,1.79013683]
[1743526152058,4.25040742,611.18,607.65,1.79013683]
[1743526152260,4.25040742,611.17,607.65,1.79013683]
[1743526152461,4.25040742,611.16,607.65,1.79013683]
[1743526152761,0.95925729,611.99,607.65,1.79013683]
[1743526152762,8.2808677,611.15,607.65,1.79013683]
[1743526153060,4.25040742,611.14,607.65,1.79013683]
[1743526153261,4.25040742,611.13,607.65,1.79013683]
[1743526153461,4.25040742,611.12,607.65,1.79013683]
[1743526153661,8.2808677,611.11,607.65,1.79013683]
[1743526153862,4.25040742,611.1,607.65,1.79013683]
[1743526154058,4.25040742,611.09,607.65,1.79013683]
[1743526154264,4.2500995,611.08,607.65,1.79013683]
[1743526154456,1.63477208,611.07,607.65,1.79013683]
[1743526154660,0.95925729,611.92,607.65,1.79013683]
[1743526154964,2.45096069,612.74,607.65,1.79013683]
[1743526155560,1.59782563,611.38,607.65,1.79013683]
[1743526155763,4.90414212,611.37,607.65,1.79013683]
[1743526155963,1.59782563,611.35,607.65,1.79013683]
[1743526156163,4.90414212,611.34,607.65,1.79013683]
[1743526156357,4.90414212,611.33,607.65,1.79013683]
[1743526156663,4.90414212,611.32,607.65,1.79013683]
[1743526156863,4.90415279,611.31,607.65,1.79013683]
[1743526157064,4.90415279,611.3,607.65,1.79013683]
[1743526157362,4.25025651,611.29,607.65,1.79013683]
[1743526157558,4.25025651,611.28,607.65,1.79013683]
[1743526157762,4.64239091,611.29,607.65,1.79013683]
[1743526157763,4.25025651,611.27,607.65,1.79013683]
[1743526158063,4.9041838,611.26,607.65,1.79013683]
[1743526158262,4.25025651,611.25,607.65,1.79013683]
[1743526158457,4.25025651,611.24,607.65,1.79013683]
[1743526158660,8.23876181,611.23,607.65,1.79013683]
[1743526158862,4.25025651,611.22,607.65,1.79013683]
[1743526159065,4.25025651,611.21,607.65,1.79013683]
[1743526159258,4.25025651,611.2,607.65,1.79013683]
[1743526159457,4.25025651,611.19,607.65,1.79013683]
[1743526159656,4.25025651,611.18,607.65,1.79013683]
[1743526159857,4.25025651,611.17,607.65,1.79013683]
[1743526160059,4.25025651,611.16,607.65,1.79013683]
[1743526160257,3.9885053,611.17,607.65,1.79013683]
[1743526160258,1.63471404,611.15,607.65,1.79013683]
[1743526160457,1.63471404,611.14,607.65,1.79013683]
[1743526160662,1.63471404,611.13,607.65,1.79013683]
[1743526160863,1.63471404,611.12,607.65,1.79013683]
[1743526161164,1.5340405,611.13,607.65,1.79013683]
[1743526161357,1.59782563,611.55,607.65,1.79013683]
[1743526161557,4.90398609,611.54,607.65,1.79013683]
[1743526161759,4.90398609,611.53,607.65,1.79013683]
[1743526161960,4.65260132,611.54,607.65,1.79013683]
[1743526161961,4.90398609,611.52,607.65,1.79013683]
[1743526162158,9.55658741,611.51,607.65,1.79013683]
[1743526162358,4.25012128,611.5,607.65,1.79013683]
[1743526162660,4.25012128,611.49,607.65,1.79013683]
[1743526162859,4.25012128,611.48,607.65,1.79013683]
[1743526163059,4.24961873,611.47,607.65,1.79013683]
[1743526163262,4.24961873,611.46,607.65,1.79013683]
[1743526163568,8.24835534,611.45,607.65,1.79013683]
[1743526163762,4.24961873,611.44,607.65,1.79013683]
[1743526163962,8.90226448,611.43,607.65,1.79013683]
[1743526164162,4.24961873,611.42,607.65,1.79013683]
[1743526164363,4.24961873,611.41,607.65,1.79013683]
[1743526164561,4.24961873,611.4,607.65,1.79013683]
[1743526164763,4.24961873,611.39,607.65,1.79013683]
[1743526164962,4.24961873,611.38,607.65,1.79013683]
[1743526165166,9.55635383,611.37,607.65,1.79013683]
[1743526165367,4.24961873,611.36,607.65,1.79013683]
[1743526165562,8.24835534,611.35,607.65,1.79013683]
[1743526165762,4.24961873,611.34,607.65,1.79013683]
[1743526165959,4.24961873,611.33,607.65,1.79013683]
[1743526166266,4.24961873,611.32,607.65,1.79013683]
[1743526166465,4.24961873,611.31,607.65,1.79013683]
[1743526166765,4.24961873,611.3,607.65,1.79013683]
[1743526166959,8.24835534,611.29,607.65,1.79013683]
[1743526167162,4.24961873,611.28,607.65,1.79013683]
[1743526167366,4.24961873,611.27,607.65,1.79013683]
[1743526167565,8.24937476,611.26,607.65,1.79013683]
[1743526167767,1.63446874,611.25,607.65,1.79013683]
[1743526167964,1.63446874,611.24,607.65,1.79013683]
[1743526168168,1.63446874,611.23,607.65,1.79013683]
[1743526168469,1.63446874,611.22,607.65,1.79013683]
[1743526168668,3.99873661,611.24,607.65,1.79013683]
[1743526168669,1.63446874,611.21,607.65,1.79013683]
[1743526168862,1.63446874,611.2,607.65,1.79013683]
[1743526169063,1.63446874,611.19,607.65,1.79013683]
[1743526169267,3.17244436,611.18,607.65,1.79013683]
[1743526169463,1.63446874,611.17,607.65,1.79013683]
[1743526169669,1.63446874,611.16,607.65,1.79013683]
[1743526169871,1.63446874,611.15,607.65,1.79013683]
[1743526170069,1.63446874,611.14,607.65,1.79013683]
[1743526170270,1.63511723,611.13,607.65,1.79013683]
[1743526170465,1.53797562,611.14,607.65,1.79013683]
[1743526170669,1.63511769,611.13,607.65,1.79013683]
[1743526170871,1.53797562,611.13,607.65,1.79013683]
[1743526171276,1.53797562,611.12,607.65,1.79013683]
[1743526171672,1.53797562,611.11,607.65,1.79013683]
[1743526172274,1.63511832,611.1,607.65,1.79013683]
[1743526172475,1.63511832,611.09,607.65,1.79013683]
[1743526172679,1.63511832,611.08,607.65,1.79013683]
[1743526172976,1.63511832,611.07,607.65,1.79013683]
[1743526173176,3.17309394,611.06,607.65,1.79013683]
[1743526173381,1.63511832,611.05,607.65,1.79013683]
[1743526173581,1.63511832,611.04,607.65,1.79013683]
[1743526173882,1.53797562,611.04,607.65,1.79013683]
[1743526174084,3.1733386,611.03,607.65,1.79013683]
[1743526174277,1.63536298,611.02,607.65,1.79013683]
[1743526174480,1.63536298,611.01,607.65,1.79013683]
[1743526174681,1.63536298,611.0,607.65,1.79013683]
[1743526174977,1.63536298,610.99,607.65,1.79013683]
[1743526175176,1.63536298,610.98,607.65,1.79013683]
[1743526175381,1.63536298,610.97,607.65,1.79013683]
[1743526175684,1.63536298,610.96,607.65,1.79013683]
[1743526175877,1.63536298,610.95,607.65,1.79013683]
[1743526176083,1.63536298,610.94,607.65,1.79013683]
[1743526176282,1.53797562,610.94,607.65,1.79013683]
[1743526176878,1.53797562,610.93,607.65,1.79013683]
[1743526177484,1.59782563,611.34,607.65,1.79013683]
[1743526177680,5.23394058,611.33,607.65,1.79013683]
[1743526177877,4.90678504,611.32,607.65,1.79013683]
[1743526178082,4.90678504,611.31,607.65,1.79013683]
[1743526178285,4.90678504,611.3,607.65,1.79013683]
[1743526178483,4.90678504,611.29,607.65,1.79013683]
[1743526178782,9.56779396,611.28,607.65,1.79013683]
[1743526178983,5.23397269,611.27,607.65,1.79013683]
[1743526179283,9.89498697,611.26,607.65,1.79013683]
[1743526179583,9.89499232,611.25,607.65,1.79013683]
[1743526179779,5.23398875,611.24,607.65,1.79013683]
[1743526179982,4.90678504,611.23,607.65,1.79013683]
[1743526180183,4.90678504,611.22,607.65,1.79013683]
[1743526180383,4.90678504,611.21,607.65,1.79013683]
[1743526180580,4.90678504,611.2,607.65,1.79013683]
[1743526180887,4.90678504,611.19,607.65,1.79013683]
[1743526181086,4.90678504,611.18,607.65,1.79013683]
[1743526181288,4.25254704,611.17,607.65,1.79013683]
[1743526181483,4.25254704,611.16,607.65,1.79013683]
[1743526181685,4.25254704,611.15,607.65,1.79013683]
[1743526181885,4.25254704,611.14,607.65,1.79013683]
[1743526182087,4.25254704,611.13,607.65,1.79013683]
[1743526182288,4.25254704,611.12,607.65,1.79013683]
[1743526182488,4.25254704,611.11,607.65,1.79013683]
[1743526182686,4.25254704,611.1,607.65,1.79013683]
[1743526182883,1.63559501,611.09,607.65,1.79013683]
[1743526183088,1.63559501,611.08,607.65,1.79013683]
[1743526183283,1.63559501,611.07,607.65,1.79013683]
[1743526183483,1.63559501,611.06,607.65,1.79013683]
[1743526183788,1.63559501,611.05,607.65,1.79013683]
[1743526183990,4.25262041,611.04,607.65,1.79013683]
[1743526184189,1.63559501,611.03,607.65,1.79013683]
[1743526184391,5.79368814,611.02,607.65,1.79013683]
[1743526184592,1.63559501,611.01,607.65,1.79013683]
[1743526184791,5.63966487,611.0,607.65,1.79013683]
[1743526184991,1.63559501,610.99,607.65,1.79013683]
[1743526185190,1.63559501,610.98,607.65,1.79013683]
[1743526185385,1.63559501,610.97,607.65,1.79013683]
[1743526185586,1.63559501,610.96,607.65,1.79013683]
[1743526185787,1.63559501,610.95,607.65,1.79013683]
[1743526185989,1.63559501,610.94,607.65,1.79013683]
[1743526186194,1.63559501,610.93,607.65,1.79013683]
[1743526186388,1.63559501,610.92,607.65,1.79013683]
[1743526186593,1.63572847,610.91,607.65,1.79013683]
[1743526186788,1.63572847,610.9,607.65,1.79013683]
[1743526186988,3.17679097,610.89,607.65,1.79013683]
[1743526187189,1.63572847,610.88,607.65,1.79013683]
[1743526187390,1.63572847,610.87,607.65,1.79013683]
[1743526187590,1.63572847,610.86,607.65,1.79013683]
[1743526187895,1.63572847,610.85,607.65,1.79013683]
[1743526188098,1.5410625,610.87,607.65,1.79013683]
[1743526188298,1.63576746,610.86,607.65,1.79013683]
[1743526188502,3.17682996,610.85,607.65,1.79013683]
[1743526188698,1.63576746,610.84,607.65,1.79013683]
[1743526188898,1.63576746,610.83,607.65,1.79013683]
[1743526189099,1.93016344,611.24,607.65,1.79013683]
[1743526189394,1.63578028,611.23,607.65,1.79013683]
[1743526189599,4.90734085,611.23,607.65,1.79013683]
[1743526189799,0.32720371,611.24,607.65,1.79013683]
[1743526190001,1.63581292,611.23,607.65,1.79013683]
[1743526190201,6.51031817,611.23,607.65,1.79013683]
[1743526190397,6.51031817,611.22,607.65,1.79013683]
[1743526191001,1.53848297,610.82,607.65,1.79013683]
[1743526191496,1.53848297,610.81,607.65,1.79013683]
[1743526192201,1.53848297,610.8,607.65,1.79013683]
[1743526192698,0.32720371,611.24,607.65,1.79013683]
[1743526192896,4.90742566,611.23,607.65,1.79013683]
[1743526193100,4.90742566,611.22,607.65,1.79013683]
[1743526193403,5.23464543,611.21,607.65,1.79013683]
[1743526193597,5.23465079,611.2,607.65,1.79013683]
[1743526193897,1.60284179,611.16,607.65,1.79013683]
[1743526194101,4.90742566,611.15,607.65,1.79013683]
[1743526194300,6.51030506,611.14,607.65,1.79013683]
[1743526194603,1.60284179,611.11,607.65,1.79013683]
[1743526194897,5.23470433,611.1,607.65,1.79013683]
[1743526195202,5.23470969,611.09,607.65,1.79013683]
[1743526195401,4.90742566,611.08,607.65,1.79013683]
[1743526195604,4.90742566,611.07,607.65,1.79013683]
[1743526195803,4.90742566,611.06,607.65,1.79013683]
[1743526196004,4.90742566,611.05,607.65,1.79013683]
[1743526196200,4.90742566,611.04,607.65,1.79013683]
[1743526196401,4.90742566,611.03,607.65,1.79013683]
[1743526196600,4.90742566,611.02,607.65,1.79013683]
[1743526196899,4.90742566,611.01,607.65,1.79013683]
[1743526197099,4.90742566,611.0,607.65,1.79013683]
[1743526197302,4.90742566,610.99,607.65,1.79013683]
[1743526197504,4.90742566,610.98,607.65,1.79013683]
[1743526197696,4.90742566,610.97,607.65,1.79013683]
[1743526197901,4.90742566,610.96,607.65,1.79013683]
[1743526198099,4.90742566,610.95,607.65,1.79013683]
[1743526198303,4.90742566,610.94,607.65,1.79013683]
[1743526198498,4.65264726,610.95,607.65,1.79013683]
[1743526198499,4.90742566,610.93,607.65,1.79013683]
[1743526198802,4.90742566,610.92,607.65,1.79013683]
[1743526199003,4.90742566,610.91,607.65,1.79013683]
[1743526199201,4.90742566,610.9,607.65,1.79013683]
[1743526199404,4.65264726,610.91,607.65,1.79013683]
[1743526199405,4.90742566,610.89,607.65,1.79013683]
[1743526199604,4.90742566,610.88,607.65,1.79013683]
[1743526199801,4.90742566,610.87,607.65,1.79013683]
[1743526200006,4.90742566,610.86,607.65,1.79013683]
[1743526200201,4.90742566,610.85,607.65,1.79013683]
[1743526200399,4.90742566,610.84,607.65,1.79013683]
[1743526200603,4.90742566,610.83,607.65,1.79013683]
[1743526200805,4.90742566,610.82,607.65,1.79013683]
[1743526201004,4.90742566,610.81,607.65,1.79013683]
[1743526201206,4.90742566,610.8,607.65,1.79013683]
[1743526201405,4.90742566,610.79,607.65,1.79013683]
[1743526201605,4.90742566,610.78,607.65,1.79013683]
[1743526201802,4.90742566,610.77,607.65,1.79013683]
[1743526202001,4.90742566,610.76,607.65,1.79013683]
[1743526202200,4.90742566,610.75,607.65,1.79013683]
[1743526202507,9.56007292,610.74,607.65,1.79013683]
[1743526202706,4.90742566,610.73,607.65,1.79013683]
[1743526202903,4.90742566,610.72,607.65,1.79013683]
[1743526203205,4.90742566,610.71,607.65,1.79013683]
[1743526203406,4.90742566,610.7,607.65,1.79013683]
[1743526203607,4.90742566,610.69,607.65,1.79013683]
[1743526203808,4.90742566,610.68,607.65,1.79013683]
[1743526204107,4.90742566,610.67,607.65,1.79013683]
[1743526204303,4.90742566,610.66,607.65,1.79013683]
[1743526204503,4.90742566,610.65,607.65,1.79013683]
[1743526204704,4.90742566,610.64,607.65,1.79013683]
[1743526204906,4.90742566,610.63,607.65,1.79013683]
[1743526205101,4.90742566,610.62,607.65,1.79013683]
[1743526205302,4.90742566,610.61,607.65,1.79013683]
[1743526205607,4.90742566,610.6,607.65,1.79013683]
[1743526205808,4.90742566,610.59,607.65,1.79013683]
[1743526206007,4.90742566,610.58,607.65,1.79013683]
[1743526206206,4.90742566,610.57,607.65,1.79013683]
[1743526206408,4.25310224,610.56,607.65,1.79013683]
[1743526206608,4.25310224,610.55,607.65,1.79013683]
[1743526206803,1.63580855,610.54,607.65,1.79013683]
[1743526207109,1.63580855,610.53,607.65,1.79013683]
[1743526207308,0.32728403,611.09,607.65,1.79013683]
[1743526207502,1.59543526,610.99,607.65,1.79013683]
[1743526207707,3.9811227,610.52,607.65,1.79013683]
[1743526208006,1.63643133,610.51,607.65,1.79013683]
[1743526208209,1.63643133,610.5,607.65,1.79013683]
[1743526208404,1.63643133,610.49,607.65,1.79013683]
[1743526208708,1.63643133,610.48,607.65,1.79013683]
[1743526208903,1.63643133,610.47,607.65,1.79013683]
[1743526209108,1.63643133,610.46,607.65,1.79013683]
[1743526209309,1.63643133,610.45,607.65,1.79013683]
[1743526209505,1.63643133,610.44,607.65,1.79013683]
[1743526209702,1.63643133,610.43,607.65,1.79013683]
[1743526209906,1.63643133,610.42,607.65,1.79013683]
[1743526210108,1.63643133,610.41,607.65,1.79013683]
[1743526210305,1.63643133,610.4,607.65,1.79013683]